bitfinex/quotes_BTCUSD_20230110
["timestamp","ask_amount","ask_price","bid_price","bid_amount"]
[1673322492440,0.01137085,17203.0,17202.0,0.69264793]
[1673322492683,0.01137085,17203.0,17202.0,0.86670752]
[1673322493205,0.01137085,17203.0,17202.0,0.69264793]
[1673322493457,0.01137085,17203.0,17202.0,0.69292651]
[1673322493952,0.18574614,17203.0,17202.0,0.69292651]
[1673322494689,0.54790514,17203.0,17202.0,0.69292651]
[1673322495210,0.80946497,17203.0,17202.0,0.69292651]
[1673322495729,0.80946497,17203.0,17202.0,0.69264793]
[1673322496269,0.44730597,17203.0,17202.0,0.69292651]
[1673322496832,0.18574614,17203.0,17202.0,0.69292651]
[1673322497296,0.44730597,17203.0,17202.0,0.69292651]
[1673322498264,0.18574614,17203.0,17202.0,0.69292651]
[1673322498763,0.44730597,17203.0,17202.0,0.69292651]
[1673322499019,0.18574614,17203.0,17202.0,0.69292651]
[1673322499279,0.44730597,17203.0,17202.0,0.69292651]
[1673322509068,0.18574614,17203.0,17202.0,0.69292651]
[1673322512613,0.18574614,17203.0,17202.0,0.8669861]
[1673322513120,0.18574614,17203.0,17202.0,0.69292651]
[1673322513439,0.01137085,17203.0,17202.0,0.8669861]
[1673322513650,0.01137085,17203.0,17202.0,0.69292651]
[1673322513651,0.18574614,17203.0,17202.0,0.69292651]
[1673322514153,0.01137085,17203.0,17202.0,0.8669861]
[1673322516409,0.18574614,17203.0,17202.0,0.69292651]
[1673322517701,0.18574614,17203.0,17202.0,0.8669861]
[1673322517951,0.18574614,17203.0,17202.0,0.69292651]
[1673322518945,0.18574614,17203.0,17202.0,0.8669861]
[1673322519991,0.01137085,17203.0,17202.0,0.8669861]
[1673322520767,0.01137085,17203.0,17202.0,0.7959861]
[1673322521076,0.01137085,17203.0,17202.0,0.9379861]
[1673322527723,0.01137085,17203.0,17202.0,1.86552589]
[1673322528224,0.01137085,17203.0,17202.0,2.03472589]
[1673322529230,0.01137085,17203.0,17202.0,1.36829193]
[1673322529504,0.01137085,17203.0,17202.0,1.89262149]
[1673322529759,0.01137085,17203.0,17202.0,2.03462027]
[1673322533859,0.01137085,17203.0,17202.0,2.33462027]
[1673322534892,0.01137085,17203.0,17202.0,2.03462027]
[1673322536430,0.01137085,17203.0,17202.0,1.36829193]
[1673322536664,0.01137085,17203.0,17202.0,1.1071861]
[1673322539180,0.01137085,17203.0,17202.0,0.93284793]
[1673322541770,0.01137085,17203.0,17202.0,0.93038393]
[1673322542525,0.01137085,17203.0,17202.0,1.1047268]
[1673322544345,0.01137085,17203.0,17202.0,0.93066721]
[1673322547118,0.01137085,17203.0,17202.0,1.1047268]
[1673322548856,0.01137085,17203.0,17202.0,0.93066721]
[1673322549110,0.01137085,17203.0,17202.0,1.1047268]
[1673322549327,0.01137085,17203.0,17202.0,0.93066721]
[1673322550340,0.18574614,17203.0,17202.0,0.93066721]
[1673322550870,0.01137085,17203.0,17202.0,1.1047268]
[1673322551131,0.01137085,17203.0,17202.0,0.48525959]
[1673322551385,1.22283698,17203.0,17202.0,0.142]
[1673322551657,1.49542073,17203.0,17202.0,0.142]
[1673322552940,1.66972468,17203.0,17202.0,0.142]
[1673322553189,1.49542073,17203.0,17202.0,0.142]
[1673322553453,1.8549921,17203.0,17202.0,0.142]
[1673322553708,1.85499267,17203.0,17202.0,0.142]
[1673322553971,1.85499264,17203.0,17202.0,0.142]
[1673322554715,1.49523835,17203.0,17202.0,0.142]
[1673322555489,2.74353957,17203.0,17202.0,0.142]
[1673322555749,2.39478898,17203.0,17202.0,0.142]
[1673322556003,1.95889878,17203.0,17202.0,0.142]
[1673322556252,1.95889878,17203.0,17199.0,0.49484101]
[1673322556530,0.60324468,17201.0,17199.0,0.49484101]
[1673322556783,0.362159,17200.0,17199.0,0.49547865]
[1673322557037,0.98878833,17201.0,17199.0,0.49484101]
[1673322558106,0.54185787,17201.0,17200.0,0.38752763]
[1673322558340,0.3676,17201.0,17199.0,0.49561332]
[1673322558597,0.3676,17201.0,17200.0,0.39300046]
[1673322559454,0.3676,17201.0,17200.0,0.39900046]
[1673322560752,0.3676,17201.0,17200.0,0.39963808]
[1673322560956,0.3676,17201.0,17200.0,0.39900046]
[1673322561947,0.1676,17201.0,17200.0,0.39963808]
[1673322563978,0.1676,17201.0,17200.0,0.39900046]
[1673322564470,0.1676,17201.0,17200.0,0.39963808]
[1673322566000,0.1676,17201.0,17200.0,0.39900046]
[1673322566754,0.1676,17201.0,17200.0,0.39893656]
[1673322567003,0.729759,17201.0,17200.0,0.39893656]
[1673322567969,0.729759,17201.0,17200.0,0.39957418]
[1673322568228,0.729759,17201.0,17200.0,0.39893656]
[1673322568483,0.3676,17201.0,17200.0,0.39893656]
[1673322568980,0.729759,17201.0,17200.0,0.39893656]
[1673322569478,0.3676,17201.0,17200.0,0.39893656]
[1673322569722,0.729759,17201.0,17200.0,0.39893656]
[1673322572576,1.17668946,17201.0,17200.0,0.39893656]
[1673322572829,0.729759,17201.0,17200.0,0.39893656]
[1673322574617,0.3676,17201.0,17200.0,0.39893656]
[1673322574882,0.729759,17201.0,17200.0,0.39893656]
[1673322575132,0.3676,17201.0,17200.0,0.39893656]
[1673322575379,0.729759,17201.0,17200.0,0.39893656]
[1673322577522,0.729759,17201.0,17200.0,0.006]
[1673322578056,0.3676,17201.0,17200.0,0.006]
[1673322578316,0.562159,17201.0,17200.0,0.006]
[1673322579332,0.73641687,17201.0,17200.0,0.006]
[1673322581191,0.37425787,17201.0,17200.0,0.006]
[1673322581649,0.2,17201.0,17200.0,0.006]
[1673322581904,0.73641687,17201.0,17200.0,0.006]
[1673322583026,0.37425787,17201.0,17200.0,0.006]
[1673322583283,0.73641687,17201.0,17200.0,0.006]
[1673322583813,1.18334733,17201.0,17200.0,0.006]
[1673322584043,0.73641687,17201.0,17200.0,0.006]
[1673322584985,0.37425787,17201.0,17200.0,0.006]
[1673322585468,0.73641687,17201.0,17200.0,0.006]
[1673322585708,0.37425787,17201.0,17200.0,0.006]
[1673322587949,0.73641687,17201.0,17200.0,0.006]
[1673322588763,0.99780368,17201.0,17200.0,0.006]
[1673322589271,0.37425787,17201.0,17200.0,0.006]
[1673322589551,0.63564468,17201.0,17200.0,0.006]
[1673322590847,0.80990256,17201.0,17200.0,0.006]
[1673322591352,1.34636473,17201.0,17200.0,0.006]
[1673322591648,1.17206156,17201.0,17200.0,0.006]
[1673322592288,1.61899202,17201.0,17200.0,0.006]
[1673322592786,1.17206156,17201.0,17200.0,0.006]
[1673322593545,0.80990256,17201.0,17200.0,0.006]
[1673322594543,1.17206156,17201.0,17200.0,0.006]
[1673322596386,0.80990256,17201.0,17200.0,0.006]
[1673322596928,1.17206156,17201.0,17200.0,0.006]
[1673322599207,0.80990256,17201.0,17200.0,0.006]
[1673322600445,0.6357488,17201.0,17200.0,0.006]
[1673322600924,0.98426455,17201.0,17200.0,0.006]
[1673322601384,0.9979078,17201.0,17200.0,0.006]
[1673322601890,0.6324998,17201.0,17200.0,0.006]
[1673322603152,0.17436199,17201.0,17200.0,0.45650781]
[1673322603707,1.28328451,17202.0,17200.0,0.6305674]
[1673322603708,1.10913075,17202.0,17200.0,0.6305674]
[1673322603956,1.4576465,17202.0,17200.0,0.6305674]
[1673322604205,0.17436199,17201.0,17200.0,0.45650781]
[1673322604946,0.17436199,17201.0,17200.0,0.45050781]
[1673322605262,0.17436199,17201.0,17200.0,0.45650781]
[1673322605541,0.17436199,17201.0,17200.0,0.45050781]
[1673322605744,0.17436199,17201.0,17200.0,0.45650781]
[1673322606566,1.4576465,17202.0,17200.0,0.45650781]
[1673322607023,1.10913075,17202.0,17200.0,0.6305674]
[1673322607529,1.10913075,17202.0,17200.0,0.6245674]
[1673322607783,1.10913075,17202.0,17200.0,0.45650781]
[1673322609555,1.55606121,17202.0,17200.0,0.45650781]
[1673322610295,1.10913075,17202.0,17200.0,0.45650781]
[1673322611330,1.55606121,17202.0,17200.0,0.45650781]
[1673322611593,1.90457696,17202.0,17200.0,0.45650781]
[1673322611860,0.17436199,17201.0,17200.0,0.45650781]
[1673322612075,1.90457696,17202.0,17200.0,0.45650781]
[1673322612318,1.55606121,17202.0,17200.0,0.45650781]
[1673322612570,0.17436199,17201.0,17200.0,0.45650781]
[1673322613064,1.90457696,17202.0,17200.0,0.45650781]
[1673322613313,1.55606121,17202.0,17200.0,0.45650781]
[1673322613806,1.55606121,17202.0,17200.0,0.45050781]
[1673322614062,1.55606121,17202.0,17200.0,0.45650781]
[1673322614455,1.90457696,17202.0,17200.0,0.45650781]
[1673322614687,1.55606121,17202.0,17200.0,0.45050781]
[1673322615481,1.55606121,17202.0,17200.0,0.45650781]
[1673322615752,1.90457696,17202.0,17200.0,0.45650781]
[1673322616417,0.17436199,17201.0,17200.0,0.45650781]
[1673322617668,0.17436199,17201.0,17200.0,0.45050781]
[1673322617924,1.90457696,17202.0,17200.0,0.45650781]
[1673322618189,1.55606121,17202.0,17200.0,0.45650781]
[1673322619016,1.90457696,17202.0,17200.0,0.45650781]
[1673322619264,1.55606121,17202.0,17200.0,0.45050781]
[1673322619528,0.17436199,17201.0,17200.0,0.45650781]
[1673322620343,0.17436199,17201.0,17200.0,0.45050781]
[1673322620644,0.17436199,17201.0,17200.0,0.45650781]
[1673322624808,1.10913075,17202.0,17200.0,0.45650781]
[1673322625789,1.10913075,17202.0,17200.0,0.45050781]
[1673322626825,1.10913075,17202.0,17200.0,0.6295674]
[1673322627082,1.10913075,17202.0,17200.0,0.45550781]
[1673322627577,1.10913075,17202.0,17200.0,0.6295674]
[1673322628525,1.10913075,17202.0,17200.0,0.45550781]
[1673322628659,1.10913075,17202.0,17200.0,0.6295674]
[1673322629192,1.10913075,17202.0,17200.0,0.45550781]
[1673322630481,0.93993075,17202.0,17200.0,0.6295674]
[1673322632063,0.93993075,17202.0,17200.0,0.45550781]
[1673322633599,1.38686121,17202.0,17200.0,0.45550781]
[1673322633858,0.93993075,17202.0,17200.0,0.45550781]
[1673322634097,1.38686121,17202.0,17200.0,0.6295674]
[1673322634355,0.93993075,17202.0,17200.0,0.45550781]
[1673322634869,1.38686121,17202.0,17200.0,0.45550781]
[1673322635386,0.93993075,17202.0,17200.0,0.45550781]
[1673322636143,0.93993075,17202.0,17200.0,0.6295674]
[1673322638111,1.2884465,17202.0,17200.0,0.6295674]
[1673322638358,0.93993075,17202.0,17200.0,0.6295674]
[1673322639807,0.17436199,17201.0,17200.0,0.6295674]
[1673322641204,0.17436199,17201.0,17200.0,0.6245674]
[1673322641412,1.4884465,17202.0,17200.0,0.6295674]
[1673322641663,1.13993075,17202.0,17200.0,0.6295674]
[1673322641922,0.17436199,17201.0,17200.0,0.6295674]
[1673322642173,0.6357488,17201.0,17200.0,0.45550781]
[1673322642687,0.6357488,17201.0,17200.0,0.45050781]
[1673322642914,0.4357488,17201.0,17200.0,0.52550781]
[1673322643224,0.17436199,17201.0,17200.0,0.6245674]
[1673322643473,0.17436199,17201.0,17200.0,0.6295674]
[1673322643732,0.17436199,17201.0,17200.0,0.6245674]
[1673322643998,0.17436199,17201.0,17200.0,0.6995674]
[1673322644216,0.17436199,17201.0,17200.0,0.6245674]
[1673322644462,0.17436199,17201.0,17200.0,0.6295674]
[1673322644725,0.17436199,17201.0,17200.0,0.6245674]
[1673322645704,0.17436199,17201.0,17200.0,0.6995674]
[1673322645983,0.17436199,17201.0,17200.0,0.6245674]
[1673322646231,0.17436199,17201.0,17200.0,0.6295674]
[1673322646492,0.17436199,17201.0,17200.0,0.6245674]
[1673322646744,0.17436199,17201.0,17200.0,0.6995674]
[1673322647016,0.17436199,17201.0,17200.0,0.6245674]
[1673322647303,0.17436199,17201.0,17200.0,0.6295674]
[1673322647529,0.17436199,17201.0,17200.0,0.6245674]
[1673322647796,0.17436199,17201.0,17200.0,0.6995674]
[1673322648085,0.17436199,17201.0,17200.0,0.6245674]
[1673322648842,0.17436199,17201.0,17200.0,0.45050781]
[1673322649084,0.17436199,17201.0,17200.0,0.6245674]
[1673322649597,0.17436199,17201.0,17200.0,0.45050781]
[1673322650678,0.17436199,17201.0,17200.0,0.6995674]
[1673322650884,0.17436199,17201.0,17200.0,0.6245674]
[1673322651168,0.17436199,17201.0,17200.0,0.6295674]
[1673322652250,0.17436199,17201.0,17200.0,0.6995674]
[1673322652490,0.17436199,17201.0,17200.0,0.6245674]
[1673322652742,0.17436199,17201.0,17200.0,0.6295674]
[1673322652991,0.17436199,17201.0,17200.0,0.6245674]
[1673322653274,0.17436199,17201.0,17200.0,0.6995674]
[1673322653501,0.17436199,17201.0,17200.0,0.6245674]
[1673322653752,0.17436199,17201.0,17200.0,0.6295674]
[1673322654012,0.17436199,17201.0,17200.0,0.6245674]
[1673322655002,0.24696199,17201.0,17200.0,0.6995674]
[1673322655225,0.24696199,17201.0,17200.0,0.6245674]
[1673322655467,0.24696199,17201.0,17200.0,0.6295674]
[1673322655672,0.24696199,17201.0,17200.0,0.6245674]
[1673322656184,0.24696199,17201.0,17200.0,0.6995674]
[1673322658774,0.24696199,17201.0,17200.0,0.52550781]
[1673322659493,0.5083488,17201.0,17200.0,0.52550781]
[1673322665196,0.24696199,17201.0,17200.0,0.6995674]
[1673322666459,0.24696199,17201.0,17200.0,0.52550781]
[1673322666711,0.24696199,17201.0,17200.0,0.6995674]
[1673322667223,0.5083488,17201.0,17200.0,0.52550781]
[1673322667476,0.24696199,17201.0,17200.0,0.52550781]
[1673322667708,0.24696199,17201.0,17200.0,0.6995674]
[1673322667957,0.24696199,17201.0,17200.0,0.52550781]
[1673322668746,0.24696199,17201.0,17200.0,0.6995674]
[1673322668972,0.24696199,17201.0,17200.0,0.52550781]
[1673322669478,0.5083488,17201.0,17200.0,0.52550781]
[1673322669750,0.24696199,17201.0,17200.0,0.6995674]
[1673322670224,0.24696199,17201.0,17200.0,0.52550781]
[1673322670479,0.24696199,17201.0,17200.0,0.6995674]
[1673322674009,0.24696199,17201.0,17200.0,0.52550781]
[1673322674258,0.5083488,17201.0,17200.0,0.52550781]
[1673322674715,0.24696199,17201.0,17200.0,0.6995674]
[1673322674959,0.5083488,17201.0,17200.0,0.52550781]
[1673322675640,1.04466156,17201.0,17200.0,0.075]
[1673322676157,0.68250256,17201.0,17200.0,0.075]
[1673322678365,0.68250256,17201.0,17200.0,0.005]
[1673322681935,0.88250256,17201.0,17200.0,0.005]
[1673322682679,1.24466156,17201.0,17200.0,0.005]
[1673322683190,0.80990256,17201.0,17200.0,0.005]
[1673322683441,1.17206156,17201.0,17200.0,0.005]
[1673322683753,1.61899202,17201.0,17200.0,0.005]
[1673322683934,1.61899202,17201.0,17200.0,0.00493907]
[1673322683935,2.0546367,17201.0,17200.0,0.00493907]
[1673322684189,1.79324989,17201.0,17200.0,0.00493907]
[1673322684445,1.97939525,17201.0,17200.0,0.00493907]
[1673322684698,1.79324989,17201.0,17200.0,0.00493907]
[1673322684969,1.97940256,17201.0,17198.0,0.60474986]
[1673322685231,1.44494968,17200.0,17198.0,0.60474986]
[1673322685475,1.08279068,17200.0,17198.0,0.60474986]
[1673322686459,1.08279068,17200.0,17198.0,0.67874986]
[1673322687677,0.17434409,17199.0,17198.0,0.074]
[1673322687940,1.55890018,17199.0,17198.0,0.074]
[1673322688206,1.90720039,17199.0,17198.0,0.074]
[1673322688458,2.45569525,17199.0,17198.0,0.074]
[1673322688744,2.45569525,17199.0,17196.0,0.60781712]
[1673322689032,1.11175418,17199.0,17198.0,0.074]
[1673322689266,2.27539625,17199.0,17198.0,0.074]
[1673322689792,2.62374244,17199.0,17196.0,0.00605821]
[1673322690080,1.44452398,17198.0,17196.0,0.00605821]
[1673322690308,0.80908946,17197.0,17196.0,0.08005821]
[1673322690545,0.80908946,17197.0,17196.0,0.00605821]
[1673322690805,0.44693046,17197.0,17196.0,0.00605821]
[1673322691055,1.25156498,17198.0,17196.0,0.00605821]
[1673322691298,0.44693046,17197.0,17196.0,0.00605821]
[1673322691803,0.99030427,17198.0,17196.0,0.00605821]
[1673322692053,1.12505596,17197.0,17196.0,0.39314654]
[1673322692336,1.48721496,17197.0,17196.0,0.39214654]
[1673322693351,1.12505596,17197.0,17196.0,0.39214654]
[1673322693601,1.13105596,17197.0,17196.0,0.39314654]
[1673322693860,1.13105596,17197.0,17196.0,0.00705821]
[1673322694405,0.45293046,17197.0,17196.0,0.36678676]
[1673322694649,0.006,17197.0,17196.0,0.36678676]
[1673322695195,1.17210165,17198.0,17196.0,0.36578676]
[1673322695435,1.17210165,17198.0,17196.0,0.37078676]
[1673322696199,1.17210165,17198.0,17196.0,0.36578676]
[1673322696954,1.17210165,17198.0,17196.0,0.37078676]
[1673322701966,0.362159,17197.0,17196.0,0.37078676]
[1673322702481,1.17210165,17198.0,17196.0,0.37078676]
[1673322702740,1.17210165,17198.0,17196.0,0.36578676]
[1673322703051,1.17210165,17198.0,17196.0,0.37078676]
[1673322703778,1.17210165,17198.0,17196.0,0.36578676]
[1673322704812,1.17210165,17198.0,17196.0,0.37078676]
[1673322705577,0.72517119,17198.0,17196.0,0.37078676]
[1673322705852,1.17210165,17198.0,17196.0,0.37078676]
[1673322707376,1.17210165,17198.0,17197.0,0.59258246]
[1673322707625,0.72517119,17198.0,17197.0,0.59258246]
[1673322708139,1.17210165,17198.0,17197.0,0.59250183]
[1673322708401,1.08733019,17198.0,17197.0,0.59250183]
[1673322708652,1.08733019,17198.0,17197.0,0.59350183]
[1673322708921,1.54026065,17198.0,17197.0,0.59350183]
[1673322709174,1.54026065,17198.0,17197.0,0.001]
[1673322709969,1.17810165,17198.0,17197.0,0.001]
[1673322710988,1.54026065,17198.0,17197.0,0.001]
[1673322711253,1.17810165,17198.0,17197.0,0.001]
[1673322711509,1.54026065,17198.0,17197.0,0.001]
[1673322712799,1.17810165,17198.0,17197.0,0.001]
[1673322714355,0.73117119,17198.0,17197.0,0.001]
[1673322715143,1.71443446,17198.0,17197.0,0.001]
[1673322715970,1.09333019,17198.0,17197.0,0.001]
[1673322716188,1.17810165,17198.0,17197.0,0.001]
[1673322716674,0.73117119,17198.0,17197.0,0.001]
[1673322716938,1.09333019,17198.0,17197.0,0.001]
[1673322717200,0.73117119,17198.0,17197.0,0.001]
[1673322718992,1.09333019,17198.0,17197.0,0.001]
[1673322719239,1.54026065,17198.0,17197.0,0.001]
[1673322719751,1.71443446,17198.0,17197.0,0.001]
[1673322720522,1.35227546,17198.0,17197.0,0.001]
[1673322721316,0.905345,17198.0,17197.0,0.001]
[1673322721565,1.17810165,17198.0,17197.0,0.001]
[1673322721825,1.35227546,17198.0,17197.0,0.001]
[1673322722406,1.71443446,17198.0,17197.0,0.001]
[1673322722618,1.267504,17198.0,17197.0,0.001]
[1673322722839,0.905345,17198.0,17197.0,0.001]
[1673322724098,1.52876471,17198.0,17197.0,0.001]
[1673322724348,1.61353617,17198.0,17197.0,0.001]
[1673322724608,2.14986755,17198.0,17197.0,0.001]
[1673322724844,2.32425152,17198.0,17197.0,0.001]
[1673322725098,2.10274678,17198.0,17197.0,0.001]
[1673322725604,2.10274687,17198.0,17197.0,0.001]
[1673322726334,2.13882869,17198.0,17197.0,0.001]
[1673322726583,1.87732106,17198.0,17197.0,0.001]
[1673322727610,1.57815431,17198.0,17197.0,0.001]
[1673322727869,0.81594821,17198.0,17197.0,0.61558949]
[1673322728138,0.64199676,17198.0,17197.0,1.38478949]
[1673322728376,0.206,17198.0,17197.0,1.38478949]
[1673322728658,0.2,17198.0,17197.0,1.92000808]
[1673322728875,0.2,17198.0,17197.0,1.92500808]
[1673322729123,0.72505035,17199.0,17197.0,2.7726186]
[1673322729400,0.72505035,17199.0,17198.0,0.362159]
[1673322729651,0.55065561,17199.0,17198.0,0.362159]
[1673322729938,0.63599676,17200.0,17198.0,0.362159]
[1673322730157,1.02298113,17200.0,17199.0,0.362159]
[1673322730398,1.02298113,17200.0,17198.0,0.1742]
[1673322730659,1.02298113,17200.0,17198.0,0.34825959]
[1673322730898,1.02298113,17200.0,17198.0,0.53738215]
[1673322731458,1.02298113,17200.0,17199.0,0.46682326]
[1673322731670,0.84858639,17200.0,17199.0,0.46620988]
[1673322731965,1.02298113,17200.0,17199.0,0.46620988]
[1673322732716,1.02298113,17200.0,17199.0,0.46920988]
[1673322732957,1.02298113,17200.0,17199.0,0.46909388]
[1673322735091,0.84858639,17200.0,17199.0,0.46909388]
[1673322738405,0.84858639,17200.0,17199.0,0.003]
[1673322738898,1.02298113,17200.0,17199.0,0.003]
[1673322739154,0.84858639,17200.0,17199.0,0.003]
[1673322742726,0.84858639,17200.0,17199.0,0.46319599]
[1673322744988,0.2,17200.0,17199.0,0.46319599]
[1673322745245,0.37439474,17201.0,17199.0,0.46319599]
[1673322745500,0.2,17201.0,17199.0,0.46319599]
[1673322745753,0.71392481,17201.0,17199.0,0.46319599]
[1673322746264,0.71392481,17201.0,17199.0,0.46019599]
[1673322746543,0.71392481,17201.0,17199.0,0.46319599]
[1673322748375,0.71392481,17201.0,17199.0,0.46019599]
[1673322749453,0.71392481,17201.0,17199.0,0.53119599]
[1673322749710,0.71392481,17201.0,17199.0,0.46019599]
[1673322749999,0.71392481,17201.0,17199.0,0.53119599]
[1673322751184,0.88831955,17201.0,17199.0,0.53119599]
[1673322752904,0.53512688,17200.0,17199.0,0.53119599]
[1673322754409,0.53512688,17200.0,17199.0,0.071]
[1673322754659,0.53512688,17200.0,17198.0,0.57319858]
[1673322754910,0.53512688,17200.0,17199.0,0.071]
[1673322755381,0.53512688,17200.0,17198.0,0.57319858]
[1673322756147,0.53512688,17200.0,17198.0,0.71519858]
[1673322760711,0.53512688,17200.0,17198.0,0.88925817]
[1673322764665,0.53512688,17200.0,17199.0,0.38929898]
[1673322765465,0.37439474,17201.0,17199.0,0.38929898]
[1673322765710,0.2,17201.0,17199.0,0.56335857]
[1673322765966,0.8213252,17202.0,17199.0,0.56335857]
[1673322766219,1.08292722,17202.0,17199.0,0.80103646]
[1673322766467,1.08292722,17202.0,17199.0,1.06214229]
[1673322766720,1.08292722,17202.0,17199.0,0.8954644]
[1673322766975,1.08292722,17202.0,17199.0,1.13314229]
[1673322766976,0.63588952,17202.0,17199.0,1.13314229]
[1673322767500,0.63588952,17202.0,17199.0,0.8954644]
[1673322767760,0.63588952,17202.0,17199.0,0.8244644]
[1673322768002,0.63588952,17202.0,17199.0,0.8954644]
[1673322768250,1.08281998,17202.0,17199.0,0.8954644]
[1673322768509,1.73544271,17202.0,17199.0,0.8954644]
[1673322769255,0.17439474,17201.0,17199.0,0.8954644]
[1673322769503,1.73544271,17202.0,17199.0,0.8954644]
[1673322770310,0.17439474,17201.0,17200.0,0.0001755]
[1673322770531,2.0837889,17202.0,17200.0,0.0001755]
[1673322770764,0.17439474,17201.0,17200.0,0.0001755]
[1673322771039,0.17439474,17201.0,17199.0,0.56335857]
[1673322771800,1.73544271,17202.0,17199.0,0.8244644]
[1673322772053,0.17439474,17201.0,17199.0,0.56335857]
[1673322772308,0.17439474,17201.0,17199.0,0.63435857]
[1673322773589,1.73544271,17202.0,17199.0,0.63435857]
[1673322774129,0.17439474,17201.0,17199.0,0.63435857]
[1673322774374,0.69254011,17201.0,17199.0,0.63435857]
[1673322774905,0.69254011,17201.0,17199.0,0.56335857]
[1673322775663,0.69254011,17201.0,17199.0,0.63435857]
[1673322777707,0.95414213,17201.0,17199.0,0.46029898]
[1673322779711,0.64623232,17200.0,17199.0,0.071]
[1673322779975,1.09316278,17200.0,17199.0,0.071]
[1673322780226,0.64623232,17200.0,17199.0,0.071]
[1673322781001,1.09316278,17200.0,17198.0,0.77354295]
[1673322781268,1.09316278,17200.0,17199.0,0.071]
[1673322781529,0.64623232,17200.0,17199.0,0.071]
[1673322781791,1.09316278,17200.0,17198.0,0.77354295]
[1673322782539,1.09316278,17200.0,17198.0,0.77595655]
[1673322783521,0.44693046,17200.0,17199.0,0.071]
[1673322783842,0.6111646,17200.0,17198.0,0.77595655]
[1673322784102,1.05809506,17200.0,17198.0,0.91795655]
[1673322784884,1.04691352,17200.0,17198.0,0.65685072]
[1673322785869,1.49384398,17200.0,17198.0,0.65685072]
[1673322786571,1.49384398,17200.0,17198.0,0.65443712]
[1673322787625,1.04691352,17200.0,17198.0,0.65443712]
[1673322788829,1.04691352,17200.0,17198.0,0.65434881]
[1673322788830,0.87261395,17200.0,17198.0,0.65434881]
[1673322790280,0.87261395,17200.0,17198.0,0.65664775]
[1673322798262,0.87261395,17200.0,17198.0,0.82474775]
[1673322798821,0.87261395,17200.0,17198.0,0.9988089]
[1673322799078,0.87261395,17200.0,17199.0,0.48846741]
[1673322800396,0.87261395,17200.0,17199.0,0.55946741]
[1673322801465,0.87261395,17200.0,17199.0,0.071]
[1673322801718,1.40496048,17200.0,17199.0,0.071]
[1673322802248,1.66633965,17200.0,17199.0,0.071]
[1673322803858,2.01484522,17200.0,17199.0,0.071]
[1673322804132,1.66633965,17200.0,17199.0,0.071]
[1673322804381,1.84059244,17200.0,17199.0,0.071]
[1673322804648,2.64043909,17200.0,17199.0,0.071]
[1673322804917,2.64044439,17200.0,17199.0,0.071]
[1673322805307,2.64044128,17200.0,17199.0,0.071]
[1673322805750,2.37700423,17200.0,17199.0,0.071]
[1673322806195,2.64069997,17200.0,17199.0,0.071]
[1673322806639,2.64070682,17200.0,17199.0,0.071]
[1673322807707,2.37700423,17200.0,17199.0,0.071]
[1673322807938,2.64066978,17200.0,17199.0,0.071]
[1673322810492,2.37700423,17200.0,17199.0,0.071]
[1673322810734,2.64066532,17200.0,17199.0,0.071]
[1673322810951,2.29215975,17200.0,17199.0,0.071]
[1673322811166,2.64056668,17200.0,17199.0,0.071]
[1673322811348,2.64056475,17200.0,17199.0,0.071]
[1673322813857,2.64077227,17200.0,17199.0,0.071]
[1673322823732,2.29236727,17200.0,17199.0,0.071]
[1673322825968,2.6406893,17200.0,17199.0,0.071]
[1673322827044,2.29236727,17200.0,17199.0,0.071]
[1673322827313,2.64068958,17200.0,17199.0,0.071]
[1673322829549,2.37682097,17200.0,17199.0,0.071]
[1673322830309,2.64129667,17200.0,17199.0,0.071]
[1673322834735,2.64120675,17200.0,17199.0,0.071]
[1673322837735,2.29288444,17200.0,17199.0,0.071]
[1673322839509,1.85725248,17200.0,17199.0,0.071]
[1673322840542,2.29300685,17200.0,17199.0,0.071]
[1673322840812,2.2930041,17200.0,17199.0,0.071]
[1673322841566,1.85725248,17200.0,17199.0,0.071]
[1673322843632,1.85725248,17200.0,17199.0,0.07114406]
[1673322843889,1.85725248,17200.0,17199.0,0.071]
[1673322844683,1.48425466,17200.0,17199.0,0.19203561]
[1673322845186,1.48425466,17200.0,17199.0,0.071]
[1673322845187,1.83312478,17200.0,17199.0,0.071]
[1673322847773,2.19528378,17200.0,17199.0,0.07114406]
[1673322848078,2.64213338,17200.0,17199.0,0.071]
[1673322848834,2.27997438,17200.0,17199.0,0.071]
[1673322849600,2.64213338,17200.0,17199.0,0.071]
[1673322850140,2.29334412,17200.0,17199.0,0.071]
[1673322850889,2.29334412,17200.0,17199.0,0.07114406]
[1673322851417,2.29334412,17200.0,17199.0,0.071]
[1673322856158,2.64210058,17200.0,17199.0,0.071]
[1673322856643,2.29334412,17200.0,17199.0,0.071]
[1673322857399,2.29334412,17200.0,17199.0,0.07093963]
[1673322858417,1.31067987,17200.0,17199.0,0.07108369]
[1673322858698,0.69728066,17200.0,17199.0,0.59295863]
[1673322859196,0.26135943,17200.0,17199.0,0.76175863]
[1673322859444,0.26135943,17200.0,17199.0,1.29797878]
[1673322859949,0.26135943,17200.0,17199.0,1.12391763]
[1673322863752,0.26135943,17200.0,17199.0,2.05775783]
[1673322863994,0.26135943,17200.0,17199.0,2.05775805]
[1673322864254,0.26135943,17200.0,17199.0,2.90869383]
[1673322864792,0.26135943,17200.0,17199.0,3.25681614]
[1673322865115,0.26135943,17200.0,17199.0,2.90869383]
[1673322865347,0.26135943,17200.0,17199.0,1.40585787]
[1673322865582,0.26135943,17200.0,17199.0,1.75786044]
[1673322865829,0.26135943,17200.0,17199.0,2.05786044]
[1673322866904,0.26135943,17200.0,17199.0,2.31895217]
[1673322867406,0.26135943,17200.0,17199.0,2.90709716]
[1673322868177,0.26135943,17200.0,17199.0,2.06636044]
[1673322869311,0.26135943,17200.0,17199.0,1.99542081]
[1673322869567,0.26135943,17200.0,17199.0,2.13442081]
[1673322869816,0.26135943,17200.0,17199.0,1.99542081]
[1673322870082,0.26135943,17200.0,17199.0,2.13442081]
[1673322871617,0.26135943,17200.0,17199.0,2.98305268]
[1673322872124,0.26135943,17200.0,17199.0,2.39551254]
[1673322872386,0.26135943,17200.0,17199.0,2.13442081]
[1673322873187,0.26135943,17200.0,17199.0,2.39551254]
[1673322873416,0.26135943,17200.0,17199.0,2.98286346]
[1673322874964,0.26135943,17200.0,17199.0,2.39551254]
[1673322875217,0.26135943,17200.0,17199.0,2.25816293]
[1673322875516,0.26135943,17200.0,17199.0,1.76575851]
[1673322875729,0.26135943,17200.0,17199.0,2.35294179]
[1673322876261,0.26135943,17200.0,17199.0,2.35172074]
[1673322876515,0.26135943,17200.0,17199.0,2.35172097]
[1673322876776,0.26135943,17200.0,17199.0,2.28143325]